[Event "Titled Tuesday Blitz June 1 2021"]
[White "Budiarti, Farah Yumna"]
[Black "NovakCabarkapa"]
[WhiteFideId "7107331"]
[WhiteElo "2525"]
[BlackElo "2803"]
[Result "0-1"]
[Round "02"]
[TimeControl "180+1"]
[Date "2021.06.01"]
[WhiteClock "0:00:01"]
[BlackClock "0:00:12"]

1. d4 {[%clk 0:02:56]}  Nf6 {[%clk 0:02:59]} 2. c4 {[%clk 0:02:55]}  g6 {[%clk 0:03:00]} 3. g3 {[%clk 0:02:55]}  Bg7 {[%clk 0:02:59]} 4. Bg2 {[%clk 0:02:55]}  O-O {[%clk 0:02:59]} 5. Nc3 {[%clk 0:02:56]}  d6 {[%clk 0:03:00]} 6. Nf3 {[%clk 0:02:56]}  Nbd7 {[%clk 0:03:00]} 7. O-O {[%clk 0:02:56]}  e5 {[%clk 0:03:00]} 8. e4 {[%clk 0:02:56]}  exd4 {[%clk 0:03:01]} 9. Nxd4 {[%clk 0:02:57]}  Re8 {[%clk 0:03:02]} 10. h3 {[%clk 0:02:57]}  a6 {[%clk 0:03:02]} 11. Re1 {[%clk 0:02:56]}  Rb8 {[%clk 0:03:02]} 12. Rb1 {[%clk 0:02:54]}  Ne5 {[%clk 0:03:02]} 13. b3 {[%clk 0:02:54]}  c5 {[%clk 0:03:02]} 14. Nc2 {[%clk 0:02:53]}  Nh5 {[%clk 0:02:52]} 15. g4 {[%clk 0:02:37]}  Nf6 {[%clk 0:02:46]} 16. Bb2 {[%clk 0:02:37]}  h5 {[%clk 0:02:42]} 17. g5 {[%clk 0:02:34]}  Nh7 {[%clk 0:02:32]} 18. f4 {[%clk 0:02:33]}  Nc6 {[%clk 0:02:31]} 19. a4 {[%clk 0:02:17]}  Be6 {[%clk 0:02:08]} 20. Rf1 {[%clk 0:02:10]}  Nd4 {[%clk 0:02:01]} 21. Nxd4 {[%clk 0:02:01]}  Bxd4+ {[%clk 0:01:59]} 22. Kh2 {[%clk 0:02:01]}  Bd7 {[%clk 0:01:41]} 23. Nd5 {[%clk 0:01:44]}  Bxb2 {[%clk 0:01:38]} 24. Rxb2 {[%clk 0:01:45]}  Bc6 {[%clk 0:01:38]} 25. Rd2 {[%clk 0:01:44]}  Qd7 {[%clk 0:01:26]} 26. f5 {[%clk 0:01:32]}  Bxd5 {[%clk 0:01:04]} 27. Rxd5 {[%clk 0:01:30]}  Rbd8 {[%clk 0:01:05]} 28. h4 {[%clk 0:01:08]}  Re5 {[%clk 0:01:03]} 29. fxg6 {[%clk 0:00:31]}  fxg6 {[%clk 0:01:02]} 30. Rxe5 {[%clk 0:00:12]}  dxe5 {[%clk 0:01:01]} 31. Qd5+ {[%clk 0:00:13]}  Qxd5 {[%clk 0:00:55]} 32. exd5 {[%clk 0:00:11]}  Rd6 {[%clk 0:00:54]} 33. Bh3 {[%clk 0:00:04]}  Nf8 {[%clk 0:00:51]} 34. Re1 {[%clk 0:00:03]}  b5 {[%clk 0:00:39]} 35. axb5 {[%clk 0:00:02]}  axb5 {[%clk 0:00:39]} 36. Rxe5 {[%clk 0:00:02]}  bxc4 {[%clk 0:00:40]} 37. bxc4 {[%clk 0:00:02]}  Rb6 {[%clk 0:00:39]} 38. Re7 {[%clk 0:00:01]}  Rb2+ {[%clk 0:00:38]} 39. Kg3 {[%clk 0:00:01]}  Rb3+ {[%clk 0:00:39]} 40. Kg2 {[%clk 0:00:02]}  Rb2+ {[%clk 0:00:39]} 41. Kg1 {[%clk 0:00:02]}  Rb3 {[%clk 0:00:35]} 42. Bg2 {[%clk 0:00:02]}  Rc3 {[%clk 0:00:34]} 43. d6 {[%clk 0:00:02]}  Rg3 {[%clk 0:00:26]} 44. d7 {[%clk 0:00:02]}  Nxd7 {[%clk 0:00:26]} 45. Rxd7 {[%clk 0:00:03]}  Rg4 {[%clk 0:00:27]} 46. Kf2 {[%clk 0:00:03]}  Rxh4 {[%clk 0:00:26]} 47. Bd5+ {[%clk 0:00:03]}  Kh8 {[%clk 0:00:26]} 48. Rc7 {[%clk 0:00:03]}  Rf4+ {[%clk 0:00:22]} 49. Ke3 {[%clk 0:00:03]}  Rf5 {[%clk 0:00:19]} 50. Rxc5 {[%clk 0:00:03]}  Rxg5 {[%clk 0:00:19]} 51. Rc7 {[%clk 0:00:03]}  h4 {[%clk 0:00:19]} 52. Be4 {[%clk 0:00:02]}  h3 {[%clk 0:00:18]} 53. c5 {[%clk 0:00:03]}  h2 {[%clk 0:00:17]} 54. c6 {[%clk 0:00:03]}  Re5 {[%clk 0:00:16]} 55. Rd7 {[%clk 0:00:01]}  Rxe4+ {[%clk 0:00:12]} 56. Kxe4 {[%clk 0:00:01]}  h1=Q+ {[%clk 0:00:12]} 0-1


[Site "https://www.chess.com"]

[Event "Titled Tuesday Blitz June 1 2021"]
[White "Chiu, Isaac"]
[Black "Abdusattorov, Nodirbek"]
[WhiteFideId "30900654"]
[BlackFideId "14204118"]
[WhiteElo "2090"]
[BlackElo "2662"]
[Result "0-1"]
[Round "02"]
[TimeControl "180+1"]
[Date "2021.06.01"]
[WhiteClock "0:01:33"]
[BlackClock "0:01:37"]

1. c4 {[%clk 0:03:00]}  e5 {[%clk 0:02:59]} 2. g3 {[%clk 0:03:01]}  Nf6 {[%clk 0:02:59]} 3. Bg2 {[%clk 0:03:01]}  Nc6 {[%clk 0:03:00]} 4. Nc3 {[%clk 0:02:59]}  Bb4 {[%clk 0:03:00]} 5. Nd5 {[%clk 0:02:59]}  O-O {[%clk 0:02:59]} 6. a3 {[%clk 0:02:54]}  Bd6 {[%clk 0:02:56]} 7. Nf3 {[%clk 0:02:54]}  Nxd5 {[%clk 0:02:56]} 8. cxd5 {[%clk 0:02:54]}  Ne7 {[%clk 0:02:57]} 9. d4 {[%clk 0:02:52]}  e4 {[%clk 0:02:55]} 10. Nd2 {[%clk 0:02:53]}  f5 {[%clk 0:02:54]} 11. Nc4 {[%clk 0:02:50]}  b5 {[%clk 0:02:42]} 12. Nxd6 {[%clk 0:02:50]}  cxd6 {[%clk 0:02:43]} 13. Qb3 {[%clk 0:02:46]}  Qb6 {[%clk 0:02:41]} 14. a4 {[%clk 0:02:41]}  bxa4 {[%clk 0:02:38]} 15. Qxa4 {[%clk 0:02:35]}  Nxd5 {[%clk 0:02:38]} 16. O-O {[%clk 0:02:35]}  Rf7 {[%clk 0:02:14]} 17. b3 {[%clk 0:02:26]}  Bb7 {[%clk 0:02:13]} 18. Ba3 {[%clk 0:02:26]}  Nc3 {[%clk 0:02:10]} 19. Qb4 {[%clk 0:02:23]}  Nxe2+ {[%clk 0:02:08]} 20. Kh1 {[%clk 0:02:24]}  Qxb4 {[%clk 0:02:07]} 21. Bxb4 {[%clk 0:02:23]}  Nxd4 {[%clk 0:02:08]} 22. Bxd6 {[%clk 0:02:22]}  Nxb3 {[%clk 0:02:07]} 23. Rab1 {[%clk 0:02:20]}  Bd5 {[%clk 0:02:06]} 24. Rfd1 {[%clk 0:02:19]}  Be6 {[%clk 0:02:06]} 25. f3 {[%clk 0:02:14]}  exf3 {[%clk 0:01:53]} 26. Bxf3 {[%clk 0:02:15]}  Rc8 {[%clk 0:01:53]} 27. Rd3 {[%clk 0:02:00]}  Na5 {[%clk 0:01:42]} 28. Ra1 {[%clk 0:01:55]}  Nc6 {[%clk 0:01:41]} 29. Rc3 {[%clk 0:01:47]}  g5 {[%clk 0:01:40]} 30. Bh5 {[%clk 0:01:41]}  Bd5+ {[%clk 0:01:40]} 31. Kg1 {[%clk 0:01:41]}  Rf6 {[%clk 0:01:40]} 32. Bc5 {[%clk 0:01:35]}  g4 {[%clk 0:01:40]} 33. h3 {[%clk 0:01:34]}  Rh6 {[%clk 0:01:37]} 34. hxg4 {[%clk 0:01:33]}  fxg4 {[%clk 0:01:37]} 0-1


[Site "https://www.chess.com"]

[Event "Titled Tuesday Blitz June 1 2021"]
[White "Colas, Joshua"]
[Black "Nygren, Kim"]
[WhiteFideId "2044447"]
[BlackFideId "1706136"]
[WhiteElo "2347"]
[BlackElo "2257"]
[Result "1/2-1/2"]
[Round "02"]
[TimeControl "180+1"]
[Date "2021.06.01"]
[WhiteClock "0:00:09"]
[BlackClock "0:00:02"]

1. d4 {[%clk 0:02:53]}  Nf6 {[%clk 0:02:58]} 2. Nf3 {[%clk 0:02:51]}  g6 {[%clk 0:02:58]} 3. e3 {[%clk 0:02:47]}  Bg7 {[%clk 0:02:58]} 4. b3 {[%clk 0:02:47]}  a5 {[%clk 0:02:57]} 5. a3 {[%clk 0:02:36]}  O-O {[%clk 0:02:56]} 6. Bb2 {[%clk 0:02:36]}  d6 {[%clk 0:02:56]} 7. Nbd2 {[%clk 0:02:35]}  Bf5 {[%clk 0:02:56]} 8. Be2 {[%clk 0:02:31]}  Ne4 {[%clk 0:02:56]} 9. Nxe4 {[%clk 0:02:26]}  Bxe4 {[%clk 0:02:55]} 10. O-O {[%clk 0:02:27]}  Nd7 {[%clk 0:02:53]} 11. Ng5 {[%clk 0:02:19]}  Bc6 {[%clk 0:02:17]} 12. Rb1 {[%clk 0:02:19]}  d5 {[%clk 0:02:13]} 13. c4 {[%clk 0:02:11]}  e6 {[%clk 0:02:11]} 14. f4 {[%clk 0:01:58]}  Nf6 {[%clk 0:02:08]} 15. Bd3 {[%clk 0:01:46]}  h6 {[%clk 0:02:06]} 16. Nf3 {[%clk 0:01:45]}  Ne4 {[%clk 0:02:04]} 17. Bxe4 {[%clk 0:01:42]}  dxe4 {[%clk 0:02:04]} 18. Ne5 {[%clk 0:01:43]}  Bxe5 {[%clk 0:02:01]} 19. fxe5 {[%clk 0:01:44]}  Qg5 {[%clk 0:01:54]} 20. Rf4 {[%clk 0:01:38]}  Rad8 {[%clk 0:01:48]} 21. Bc3 {[%clk 0:01:29]}  f6 {[%clk 0:01:31]} 22. exf6 {[%clk 0:01:14]}  e5 {[%clk 0:01:31]} 23. h4 {[%clk 0:01:04]}  Qg3 {[%clk 0:01:29]} 24. Rg4 {[%clk 0:00:58]}  Qxe3+ {[%clk 0:01:28]} 25. Kh2 {[%clk 0:00:59]}  Rxf6 {[%clk 0:01:03]} 26. Rg3 {[%clk 0:00:51]}  Qf4 {[%clk 0:01:00]} 27. d5 {[%clk 0:00:49]}  Qxh4+ {[%clk 0:00:52]} 28. Rh3 {[%clk 0:00:49]}  Qf4+ {[%clk 0:00:52]} 29. Kh1 {[%clk 0:00:33]}  Bd7 {[%clk 0:00:45]} 30. Bd2 {[%clk 0:00:32]}  Qg4 {[%clk 0:00:33]} 31. Qxg4 {[%clk 0:00:29]}  Bxg4 {[%clk 0:00:34]} 32. Rxh6 {[%clk 0:00:30]}  Rdf8 {[%clk 0:00:21]} 33. Kg1 {[%clk 0:00:25]}  Bh5 {[%clk 0:00:20]} 34. Bxa5 {[%clk 0:00:20]}  Kg7 {[%clk 0:00:19]} 35. Bd2 {[%clk 0:00:20]}  Rf2 {[%clk 0:00:19]} 36. Bg5 {[%clk 0:00:18]}  R8f5 {[%clk 0:00:17]} 37. Rxh5 {[%clk 0:00:15]}  gxh5 {[%clk 0:00:18]} 38. Bd8 {[%clk 0:00:15]}  e3 {[%clk 0:00:16]} 39. Re1 {[%clk 0:00:13]}  e2 {[%clk 0:00:17]} 40. Kh2 {[%clk 0:00:13]}  e4 {[%clk 0:00:15]} 41. Bxc7 {[%clk 0:00:13]}  Rg5 {[%clk 0:00:16]} 42. Bg3 {[%clk 0:00:12]}  e3 {[%clk 0:00:14]} 43. Kh3 {[%clk 0:00:11]}  Rg6 {[%clk 0:00:11]} 44. d6 {[%clk 0:00:11]}  h4 {[%clk 0:00:10]} 45. Bxh4 {[%clk 0:00:09]}  Rgxg2 {[%clk 0:00:10]} 46. d7 {[%clk 0:00:09]}  Rh2+ {[%clk 0:00:11]} 47. Kg3 {[%clk 0:00:09]}  Rhg2+ {[%clk 0:00:11]} 48. Kh3 {[%clk 0:00:09]}  Rh2+ {[%clk 0:00:09]} 49. Kg4 {[%clk 0:00:10]}  Rhg2+ {[%clk 0:00:08]} 50. Bg3 {[%clk 0:00:06]}  Rf8 {[%clk 0:00:07]} 51. Kh3 {[%clk 0:00:06]}  Rgf2 {[%clk 0:00:06]} 52. Bc7 {[%clk 0:00:05]}  R2f3+ {[%clk 0:00:02]} 53. Kg4 {[%clk 0:00:05]}  Rf1 {[%clk 0:00:02]} 54. Rxe2 {[%clk 0:00:04]}  Rg1+ {[%clk 0:00:03]} 55. Bg3 {[%clk 0:00:03]}  Rd8 {[%clk 0:00:03]} 56. Rxe3 {[%clk 0:00:04]}  Rxd7 {[%clk 0:00:03]} 57. c5 {[%clk 0:00:05]}  Kg6 {[%clk 0:00:03]} 58. b4 {[%clk 0:00:05]}  Rf7 {[%clk 0:00:03]} 59. b5 {[%clk 0:00:05]}  Rb1 {[%clk 0:00:04]} 60. a4 {[%clk 0:00:05]}  Rb4+ {[%clk 0:00:04]} 61. Kh3 {[%clk 0:00:06]}  Rxa4 {[%clk 0:00:04]} 62. c6 {[%clk 0:00:07]}  bxc6 {[%clk 0:00:04]} 63. bxc6 {[%clk 0:00:08]}  Rc4 {[%clk 0:00:04]} 64. Re6+ {[%clk 0:00:08]}  Kf5 {[%clk 0:00:04]} 65. Rh6 {[%clk 0:00:08]}  Rc3 {[%clk 0:00:04]} 66. Rh5+ {[%clk 0:00:08]}  Ke4 {[%clk 0:00:04]} 67. Rh4+ {[%clk 0:00:07]}  Kf3 {[%clk 0:00:04]} 68. c7 {[%clk 0:00:07]}  Rg7 {[%clk 0:00:04]} 69. Rf4+ {[%clk 0:00:07]}  Ke2 {[%clk 0:00:03]} 70. Re4+ {[%clk 0:00:07]}  Kd1 {[%clk 0:00:03]} 71. Rd4+ {[%clk 0:00:07]}  Kc2 {[%clk 0:00:03]} 72. Rg4 {[%clk 0:00:07]}  Rxg4 {[%clk 0:00:02]} 73. Kxg4 {[%clk 0:00:08]}  Rxc7 {[%clk 0:00:02]} 74. Bxc7 {[%clk 0:00:09]} 1/2-1/2


[Site "https://www.chess.com"]

[Event "Titled Tuesday Blitz June 1 2021"]
[White "Dang, Hoang Son"]
[Black "Arias, Juan Cruz"]
[WhiteFideId "12402435"]
[BlackFideId "118540"]
[WhiteElo "2248"]
[BlackElo "2083"]
[Result "1-0"]
[Round "02"]
[TimeControl "180+1"]
[Date "2021.06.01"]
[WhiteClock "0:00:22"]
[BlackClock "0:00:11"]

1. d4 {[%clk 0:03:00]}  Nf6 {[%clk 0:02:58]} 2. c4 {[%clk 0:03:01]}  e6 {[%clk 0:02:58]} 3. Nf3 {[%clk 0:03:01]}  Bb4+ {[%clk 0:02:57]} 4. Bd2 {[%clk 0:03:01]}  Qe7 {[%clk 0:02:57]} 5. g3 {[%clk 0:03:00]}  Nc6 {[%clk 0:02:56]} 6. Bg2 {[%clk 0:03:01]}  Bxd2+ {[%clk 0:02:54]} 7. Qxd2 {[%clk 0:03:02]}  d6 {[%clk 0:02:54]} 8. O-O {[%clk 0:03:02]}  O-O {[%clk 0:02:44]} 9. Nc3 {[%clk 0:03:02]}  e5 {[%clk 0:02:37]} 10. e4 {[%clk 0:02:52]}  Bg4 {[%clk 0:02:34]} 11. dxe5 {[%clk 0:02:49]}  dxe5 {[%clk 0:02:28]} 12. Nd5 {[%clk 0:02:45]}  Nxd5 {[%clk 0:02:11]} 13. exd5 {[%clk 0:02:46]}  Bxf3 {[%clk 0:02:10]} 14. Bxf3 {[%clk 0:02:45]}  Nd4 {[%clk 0:02:10]} 15. Bg2 {[%clk 0:02:45]}  Rfe8 {[%clk 0:01:49]} 16. Kh1 {[%clk 0:02:42]}  Qc5 {[%clk 0:01:44]} 17. Rac1 {[%clk 0:02:40]}  a5 {[%clk 0:01:44]} 18. b3 {[%clk 0:02:38]}  Rad8 {[%clk 0:01:38]} 19. f4 {[%clk 0:02:31]}  e4 {[%clk 0:01:36]} 20. Rce1 {[%clk 0:02:30]}  f5 {[%clk 0:01:34]} 21. g4 {[%clk 0:02:21]}  g6 {[%clk 0:01:27]} 22. Re3 {[%clk 0:02:17]}  fxg4 {[%clk 0:01:23]} 23. Rxe4 {[%clk 0:01:58]}  Nf5 {[%clk 0:01:17]} 24. Rfe1 {[%clk 0:01:58]}  Rxe4 {[%clk 0:01:08]} 25. Bxe4 {[%clk 0:01:58]}  Re8 {[%clk 0:01:01]} 26. Bxf5 {[%clk 0:01:32]}  Rxe1+ {[%clk 0:01:00]} 27. Qxe1 {[%clk 0:01:33]}  gxf5 {[%clk 0:01:01]} 28. Qe6+ {[%clk 0:01:33]}  Kg7 {[%clk 0:00:42]} 29. Qxf5 {[%clk 0:01:29]}  Qf2 {[%clk 0:00:41]} 30. Qxg4+ {[%clk 0:01:28]}  Kf8 {[%clk 0:00:41]} 31. Qf5+ {[%clk 0:01:27]}  Kg7 {[%clk 0:00:41]} 32. Qe5+ {[%clk 0:01:27]}  Kf8 {[%clk 0:00:41]} 33. Qh8+ {[%clk 0:01:25]}  Ke7 {[%clk 0:00:38]} 34. Qxh7+ {[%clk 0:01:26]}  Kd6 {[%clk 0:00:38]} 35. Qg6+ {[%clk 0:01:18]}  Kd7 {[%clk 0:00:37]} 36. Qg4+ {[%clk 0:01:15]}  Kd8 {[%clk 0:00:35]} 37. Qg5+ {[%clk 0:00:44]}  Kd7 {[%clk 0:00:33]} 38. h4 {[%clk 0:00:44]}  Qf1+ {[%clk 0:00:29]} 39. Kh2 {[%clk 0:00:45]}  Qf2+ {[%clk 0:00:29]} 40. Kh3 {[%clk 0:00:45]}  Qf1+ {[%clk 0:00:18]} 41. Kg4 {[%clk 0:00:45]}  Qe2+ {[%clk 0:00:14]} 42. Kf5 {[%clk 0:00:42]}  Qxa2 {[%clk 0:00:12]} 43. Qg7+ {[%clk 0:00:40]}  Kd8 {[%clk 0:00:12]} 44. Qf8+ {[%clk 0:00:39]}  Kd7 {[%clk 0:00:13]} 45. Qf7+ {[%clk 0:00:38]}  Kd8 {[%clk 0:00:13]} 46. Qf6+ {[%clk 0:00:33]}  Kd7 {[%clk 0:00:12]} 47. Qe6+ {[%clk 0:00:33]}  Kd8 {[%clk 0:00:12]} 48. Kf6 {[%clk 0:00:34]}  b6 {[%clk 0:00:09]} 49. d6 {[%clk 0:00:31]}  cxd6 {[%clk 0:00:08]} 50. Qxd6+ {[%clk 0:00:31]}  Kc8 {[%clk 0:00:09]} 51. Qc6+ {[%clk 0:00:32]}  Kb8 {[%clk 0:00:09]} 52. Qxb6+ {[%clk 0:00:32]}  Ka8 {[%clk 0:00:10]} 53. Qc6+ {[%clk 0:00:29]}  Kb8 {[%clk 0:00:10]} 54. Qb5+ {[%clk 0:00:29]}  Ka8 {[%clk 0:00:09]} 55. h5 {[%clk 0:00:29]}  Qb2+ {[%clk 0:00:09]} 56. Kf7 {[%clk 0:00:25]}  Qh8 {[%clk 0:00:10]} 57. Qxa5+ {[%clk 0:00:25]}  Kb7 {[%clk 0:00:10]} 58. Qd5+ {[%clk 0:00:25]}  Kb6 {[%clk 0:00:10]} 59. c5+ {[%clk 0:00:25]}  Ka6 {[%clk 0:00:11]} 60. Qc6+ {[%clk 0:00:23]}  Ka7 {[%clk 0:00:11]} 61. Qd7+ {[%clk 0:00:24]}  Ka6 {[%clk 0:00:11]} 62. Qe6+ {[%clk 0:00:24]}  Ka7 {[%clk 0:00:12]} 63. Qe7+ {[%clk 0:00:22]}  Ka6 {[%clk 0:00:11]} 64. Qf6+ {[%clk 0:00:22]} 1-0


[Site "https://www.chess.com"]

[Event "Titled Tuesday Blitz June 1 2021"]
[White "Demchenko, Anton"]
[Black "Garcia Ramos, Daniel"]
[WhiteFideId "4160258"]
[BlackFideId "32010311"]
[WhiteElo "2593"]
[BlackElo "2334"]
[Result "0-1"]
[Round "02"]
[TimeControl "180+1"]
[Date "2021.06.01"]
[WhiteClock "0:00:04"]
[BlackClock "0:00:08"]

1. e4 {[%clk 0:03:00]}  c6 {[%clk 0:02:59]} 2. d4 {[%clk 0:02:59]}  d5 {[%clk 0:03:00]} 3. e5 {[%clk 0:03:00]}  c5 {[%clk 0:02:58]} 4. dxc5 {[%clk 0:03:00]}  e6 {[%clk 0:02:58]} 5. Qg4 {[%clk 0:02:56]}  h5 {[%clk 0:02:55]} 6. Qf4 {[%clk 0:02:56]}  Bxc5 {[%clk 0:02:49]} 7. Bd3 {[%clk 0:02:56]}  Nc6 {[%clk 0:02:47]} 8. Nf3 {[%clk 0:02:55]}  Nh6 {[%clk 0:02:37]} 9. Be3 {[%clk 0:02:42]}  Bxe3 {[%clk 0:02:22]} 10. fxe3 {[%clk 0:02:36]}  Qb6 {[%clk 0:02:15]} 11. Nbd2 {[%clk 0:02:36]}  Ng4 {[%clk 0:02:11]} 12. Ke2 {[%clk 0:02:36]}  Qc7 {[%clk 0:02:01]} 13. Rhf1 {[%clk 0:02:07]}  Ngxe5 {[%clk 0:01:58]} 14. Nxe5 {[%clk 0:02:03]}  Nxe5 {[%clk 0:01:56]} 15. Nf3 {[%clk 0:01:40]}  f6 {[%clk 0:01:47]} 16. Bg6+ {[%clk 0:01:37]}  Ke7 {[%clk 0:01:34]} 17. Nxe5 {[%clk 0:01:36]}  Qxe5 {[%clk 0:01:34]} 18. Qxe5 {[%clk 0:01:36]}  fxe5 {[%clk 0:01:35]} 19. Rf7+ {[%clk 0:01:37]}  Kd6 {[%clk 0:01:35]} 20. Rxg7 {[%clk 0:01:11]}  Bd7 {[%clk 0:01:35]} 21. Rf1 {[%clk 0:00:59]}  Rag8 {[%clk 0:01:24]} 22. Rff7 {[%clk 0:00:59]}  Be8 {[%clk 0:01:18]} 23. Rxb7 {[%clk 0:00:51]}  Bxg6 {[%clk 0:00:51]} 24. Rgd7+ {[%clk 0:00:51]}  Kc6 {[%clk 0:00:51]} 25. Rbc7+ {[%clk 0:00:48]}  Kb6 {[%clk 0:00:51]} 26. Rb7+ {[%clk 0:00:40]}  Kc6 {[%clk 0:00:51]} 27. Kd2 {[%clk 0:00:35]}  Be4 {[%clk 0:00:33]} 28. g3 {[%clk 0:00:35]}  Rb8 {[%clk 0:00:27]} 29. Rbc7+ {[%clk 0:00:34]}  Kb6 {[%clk 0:00:27]} 30. Rxa7 {[%clk 0:00:30]}  Rhf8 {[%clk 0:00:26]} 31. c4 {[%clk 0:00:17]}  Rf2+ {[%clk 0:00:24]} 32. Ke1 {[%clk 0:00:05]}  Rxb2 {[%clk 0:00:23]} 33. Rdc7 {[%clk 0:00:04]}  d4 {[%clk 0:00:15]} 34. exd4 {[%clk 0:00:04]}  exd4 {[%clk 0:00:15]} 35. a4 {[%clk 0:00:05]}  Rb7 {[%clk 0:00:10]} 36. Raxb7+ {[%clk 0:00:03]}  Bxb7 {[%clk 0:00:10]} 37. Re7 {[%clk 0:00:04]}  d3 {[%clk 0:00:09]} 38. Kd1 {[%clk 0:00:02]}  Bf3+ {[%clk 0:00:09]} 39. Kc1 {[%clk 0:00:02]}  d2+ {[%clk 0:00:09]} 40. Kxb2 {[%clk 0:00:03]}  d1=Q {[%clk 0:00:09]} 41. Rxe6+ {[%clk 0:00:04]}  Kc5 {[%clk 0:00:09]} 42. Ra6 {[%clk 0:00:03]}  Kxc4 {[%clk 0:00:08]} 43. Rb6 {[%clk 0:00:03]}  Qd4+ {[%clk 0:00:08]} 44. Ka3 {[%clk 0:00:03]}  Qxb6 {[%clk 0:00:08]} 45. h3 {[%clk 0:00:04]}  Qb3# {[%clk 0:00:08]} 0-1


[Site "https://www.chess.com"]

[Event "Titled Tuesday Blitz June 1 2021"]
[White "Enchev, Ivajlo"]
[Black "Fedoseev, Vladimir"]
[WhiteFideId "2907712"]
[BlackFideId "24130737"]
[WhiteElo "2452"]
[BlackElo "2756"]
[Result "0-1"]
[Round "02"]
[TimeControl "180+1"]
[Date "2021.06.01"]
[WhiteClock "0:00:39"]
[BlackClock "0:01:16"]

1. d4 {[%clk 0:03:00]}  Nf6 {[%clk 0:02:55]} 2. c4 {[%clk 0:03:00]}  g6 {[%clk 0:02:53]} 3. Nc3 {[%clk 0:03:00]}  Bg7 {[%clk 0:02:50]} 4. e4 {[%clk 0:02:59]}  d6 {[%clk 0:02:50]} 5. f3 {[%clk 0:02:59]}  O-O {[%clk 0:02:41]} 6. Nge2 {[%clk 0:02:58]}  c5 {[%clk 0:02:40]} 7. d5 {[%clk 0:02:58]}  e6 {[%clk 0:02:40]} 8. Ng3 {[%clk 0:02:58]}  exd5 {[%clk 0:02:37]} 9. cxd5 {[%clk 0:02:59]}  h5 {[%clk 0:02:35]} 10. Be2 {[%clk 0:02:57]}  Nbd7 {[%clk 0:02:32]} 11. O-O {[%clk 0:02:56]}  a6 {[%clk 0:02:15]} 12. a4 {[%clk 0:02:54]}  h4 {[%clk 0:02:12]} 13. Nh1 {[%clk 0:02:53]}  Nh5 {[%clk 0:02:12]} 14. Be3 {[%clk 0:02:42]}  f5 {[%clk 0:02:08]} 15. f4 {[%clk 0:02:33]}  fxe4 {[%clk 0:01:58]} 16. Bxh5 {[%clk 0:02:28]}  gxh5 {[%clk 0:01:58]} 17. Qxh5 {[%clk 0:02:28]}  Nf6 {[%clk 0:01:57]} 18. Qxh4 {[%clk 0:02:25]}  Ng4 {[%clk 0:01:53]} 19. Qxd8 {[%clk 0:02:20]}  Rxd8 {[%clk 0:01:53]} 20. Bf2 {[%clk 0:01:58]}  e3 {[%clk 0:01:47]} 21. Bh4 {[%clk 0:01:56]}  Re8 {[%clk 0:01:42]} 22. Ne2 {[%clk 0:01:28]}  Bf5 {[%clk 0:01:39]} 23. Nhg3 {[%clk 0:01:26]}  Bd3 {[%clk 0:01:37]} 24. Rad1 {[%clk 0:01:18]}  c4 {[%clk 0:01:34]} 25. h3 {[%clk 0:01:11]}  Nf2 {[%clk 0:01:32]} 26. Rxf2 {[%clk 0:01:07]}  exf2+ {[%clk 0:01:32]} 27. Kxf2 {[%clk 0:01:08]}  Bxb2 {[%clk 0:01:32]} 28. f5 {[%clk 0:00:57]}  Re5 {[%clk 0:01:28]} 29. Nf4 {[%clk 0:00:52]}  Bd4+ {[%clk 0:01:26]} 30. Kf3 {[%clk 0:00:50]}  Re3+ {[%clk 0:01:24]} 31. Kg4 {[%clk 0:00:50]}  Kf7 {[%clk 0:01:22]} 32. Ne6 {[%clk 0:00:46]}  Rg8+ {[%clk 0:01:20]} 33. Bg5 {[%clk 0:00:45]}  Be5 {[%clk 0:01:19]} 34. Nf1 {[%clk 0:00:39]}  Be2+ {[%clk 0:01:16]} 0-1


[Site "https://www.chess.com"]

[Event "Titled Tuesday Blitz June 1 2021"]
[White "Eugene, Floryan"]
[Black "Gokerkan, Cem Kaan"]
[WhiteFideId "20694784"]
[BlackFideId "6336760"]
[WhiteElo "2516"]
[BlackElo "2361"]
[Result "0-1"]
[Round "02"]
[TimeControl "180+1"]
[Date "2021.06.01"]
[WhiteClock "0:00:36"]
[BlackClock "0:00:27"]

1. e4 {[%clk 0:02:58]}  c5 {[%clk 0:03:00]} 2. Nf3 {[%clk 0:02:59]}  d6 {[%clk 0:03:00]} 3. d4 {[%clk 0:02:56]}  cxd4 {[%clk 0:03:01]} 4. Nxd4 {[%clk 0:02:57]}  Nf6 {[%clk 0:03:01]} 5. Nc3 {[%clk 0:02:58]}  g6 {[%clk 0:03:02]} 6. Be3 {[%clk 0:02:55]}  Bg7 {[%clk 0:03:02]} 7. f3 {[%clk 0:02:55]}  a6 {[%clk 0:03:02]} 8. Qd2 {[%clk 0:02:56]}  h5 {[%clk 0:03:02]} 9. O-O-O {[%clk 0:02:55]}  Nbd7 {[%clk 0:03:02]} 10. Kb1 {[%clk 0:02:54]}  b5 {[%clk 0:03:02]} 11. Nd5 {[%clk 0:02:40]}  Bb7 {[%clk 0:03:01]} 12. c4 {[%clk 0:02:37]}  bxc4 {[%clk 0:02:54]} 13. Bxc4 {[%clk 0:02:38]}  Rc8 {[%clk 0:02:52]} 14. Rc1 {[%clk 0:02:33]}  O-O {[%clk 0:02:52]} 15. Rhd1 {[%clk 0:02:32]}  e6 {[%clk 0:01:50]} 16. Nxf6+ {[%clk 0:02:18]}  Qxf6 {[%clk 0:01:50]} 17. Bb3 {[%clk 0:02:12]}  Nc5 {[%clk 0:01:48]} 18. Bg5 {[%clk 0:01:51]}  Nxb3 {[%clk 0:01:28]} 19. Nxb3 {[%clk 0:01:43]}  Qe5 {[%clk 0:01:12]} 20. Bf4 {[%clk 0:01:43]}  Qb5 {[%clk 0:01:05]} 21. Bxd6 {[%clk 0:01:25]}  Rxc1+ {[%clk 0:01:02]} 22. Qxc1 {[%clk 0:01:24]}  Rc8 {[%clk 0:01:01]} 23. Qe3 {[%clk 0:01:22]}  a5 {[%clk 0:00:58]} 24. e5 {[%clk 0:01:18]}  Bd5 {[%clk 0:00:55]} 25. Nd4 {[%clk 0:01:12]}  Bxa2+ {[%clk 0:00:51]} 26. Kxa2 {[%clk 0:00:57]}  Qa4+ {[%clk 0:00:51]} 27. Qa3 {[%clk 0:00:44]}  Qxd1 {[%clk 0:00:52]} 28. Nb3 {[%clk 0:00:44]}  Qd5 {[%clk 0:00:40]} 29. Qa4 {[%clk 0:00:43]}  Bxe5 {[%clk 0:00:37]} 30. Ba3 {[%clk 0:00:43]}  Rb8 {[%clk 0:00:36]} 31. g4 {[%clk 0:00:42]}  hxg4 {[%clk 0:00:34]} 32. fxg4 {[%clk 0:00:43]}  Bxh2 {[%clk 0:00:34]} 33. Be7 {[%clk 0:00:40]}  Bd6 {[%clk 0:00:31]} 34. Bf6 {[%clk 0:00:38]}  Rb4 {[%clk 0:00:26]} 35. Qe8+ {[%clk 0:00:36]}  Bf8 {[%clk 0:00:27]} 0-1


[Site "https://www.chess.com"]